fUSD/lending_fUSD_20250222
["ID","MTS","AMOUNT","RATE_DAILY","PERIOD"]
[354035442,1740190232842,-515.35,0.00012342,2]
[354035444,1740190232851,-1038.86,0.00012344,2]
[354035446,1740190232860,-1038.86,0.00012369,2]
[354035448,1740190232869,-150.0,0.00012395,2]
[354035450,1740190232878,-1038.86,0.00012395,2]
[354035452,1740190232887,-150.0,0.00012403,2]
[354035454,1740190232896,-152.32170862,0.00012403,2]
[354035456,1740190232905,-150.0,0.00012403,2]
[354035458,1740190232914,-1038.86,0.00012421,2]
[354035460,1740190232923,-1038.86,0.00012446,2]
[354035462,1740190232932,-1802.32,0.00012465,2]
[354035464,1740190232941,-567.76709241,0.00012472,2]
[354035466,1740190232956,-359.023009,0.00012472,2]
[354035469,1740190232967,-112.06989859,0.00012472,2]
[354035472,1740190232976,-316.14106273,0.00012498,2]
[354035476,1740190232987,-722.71893727,0.00012498,2]
[354035479,1740190232995,-352.71106273,0.00012505,2]
[354035483,1740190233019,-303.04274977,0.00012505,2]
[354035485,1740190233030,-1325.8261875,0.00012505,2]
[354035487,1740190233040,-361.74689943,0.00012523,2]
[354035616,1740190234256,552.84,8.767e-05,2]
[354035641,1740190238301,-677.11310057,0.00012523,2]
[354035642,1740190238314,-1038.86,0.00012549,2]
[354035643,1740190238326,-1038.86,0.00012574,2]
[354035644,1740190238336,-750.33,0.00012599,2]
[354035645,1740190238347,-1038.86,0.000126,2]
[354035646,1740190238358,-200.0,0.00012609,2]
[354035647,1740190238371,-250.44772617,0.00012616,2]
[354035648,1740190238382,-727.58,0.00012619,2]
[354035649,1740190238393,-3508.30638527,0.0001262,2]
[354035650,1740190238404,-1038.86,0.00012626,2]
[354035651,1740190238415,-1038.86,0.00012651,2]
[354035652,1740190238426,-150.0,0.00012741,2]
[354035653,1740190238436,-150.0,0.00012767,2]
[354035654,1740190238447,-150.0,0.00012769,2]
[354035655,1740190238459,-150.0,0.00012779,2]
[354035656,1740190238471,-150.0,0.00012783,2]
[354035657,1740190238482,-150.0,0.00012791,2]
[354035658,1740190238492,-45.60021634,0.00012794,2]
[354035659,1740190238541,-104.39978366,0.00012794,2]
[354035660,1740190238552,-150.0,0.00012823,2]
[354035661,1740190238563,-150.0,0.00012862,2]
[354035662,1740190238573,-200.0,0.0001291,2]
[354035663,1740190238584,-1043.65001037,0.00012931,2]
[354035664,1740190238597,-46.71998963,0.00012931,2]
[354035665,1740190238608,-200.0,0.00012931,2]
[354035666,1740190238619,-200.0,0.00012953,2]
[354035667,1740190238630,-200.0,0.00012965,2]
[354035668,1740190238640,-150.0,0.00012973,2]
[354035670,1740190238651,-874.50491094,0.00013043,2]
[354035673,1740190238662,-700.0,0.00013044,2]
[354035675,1740190238672,-150.0,0.00013053,2]
[354035677,1740190238683,-150.0,0.00013055,2]
[354035679,1740190238694,-150.0,0.00013086,2]
[354035681,1740190238704,-150.0,0.00013102,2]
[354035683,1740190238715,-150.0,0.00013105,2]
[354035685,1740190238726,-150.0,0.00013133,2]
[354035688,1740190238737,-150.0,0.00013143,2]
[354035690,1740190238747,-150.0,0.00013153,2]
[354035692,1740190238758,-150.0,0.00013166,2]
[354035694,1740190238769,-150.0,0.00013179,2]
[354035697,1740190238779,-150.0,0.00013203,2]
[354035699,1740190238790,-150.0,0.00013215,2]
[354035701,1740190238801,-150.0,0.00013236,2]
[354035703,1740190238812,-150.0,0.00013264,2]
[354035704,1740190238822,-4566.49147253,0.00013313,2]
[354035705,1740190238833,-500.0,0.00013315,2]
[354035706,1740190238843,-916.03411271,0.00013318,2]
[354035707,1740190238856,-1804.05688729,0.00013318,2]
[354035708,1740190238867,-193.344,0.00013318,2]
[354035709,1740190238877,-800.0,0.00013318,2]
[354035710,1740190238888,-500.0,0.00013318,2]
[354035711,1740190238898,-150.0,0.00013328,2]
[354035712,1740190238909,-150.0,0.00013344,2]
[354035715,1740190238920,-310.30467974,0.00013351,2]
[354035717,1740190238932,-967.26932026,0.00013351,2]
[354035719,1740190238944,-32.73067974,0.00013351,2]
[354035723,1740190238966,-1999.25032026,0.00013351,2]
[354035725,1740190238976,-1427.617,0.00013351,2]
[354035727,1740190238988,-150.946,0.00013351,2]
[354035729,1740190238998,-150.0,0.00013381,2]
[354035731,1740190239009,-150.0,0.00013383,2]
[354035733,1740190239020,-150.0,0.00013428,2]
[354035734,1740190239031,-150.0,0.00013462,2]
[354035735,1740190239042,-150.0,0.00013464,2]
[354035736,1740190239053,-42409.9217,0.00013467,2]
[354035737,1740190239064,-5755.3983,0.00013477,2]
[354035738,1740190239075,-150.0,0.00013477,2]
[354035739,1740190239086,-380.6530497,0.00013486,2]
[354035740,1740190239097,-2231.73779244,0.00013494,2]
[354035741,1740190239108,-150.0,0.00013495,2]
[354035742,1740190239118,-170.3382,0.00013495,2]
[354035743,1740190239129,-360.0,0.000135,2]
[354035744,1740190239140,-1700.0,0.000135,4]
[354035745,1740190239151,-295.82087966,0.00013509,2]
[354035746,1740190239162,-4962.14,0.00013519,2]
[354035747,1740190239173,-10397.4206,0.00013519,2]
[354035748,1740190239184,-3060.86773877,0.00013519,2]
[354035749,1740190239195,-321.03228493,0.00013519,2]
[354035750,1740190239207,-1100.26032131,0.00013524,2]
[354035751,1740190239219,-1117.60911629,0.00013524,2]
[354035752,1740190239230,-1080.00634613,0.00013524,2]
[354035753,1740190239241,-1979.47321608,0.00013524,2]
[354035754,1740190239251,-878.22,0.0001354,2]
[354035755,1740190239262,-150.0,0.0001354,2]
[354035756,1740190239273,-150.0,0.00013541,2]
[354035757,1740190239284,-150.0,0.00013555,2]
[354035758,1740190239295,-190.77,0.00013561,2]
[354035759,1740190239306,-150.0,0.00013566,2]
[354035760,1740190239318,-2231.73779239,0.0001357,2]
[354035763,1740190239329,-150.0,0.00013575,2]
[354035765,1740190239339,-36284.034,0.00013577,2]
[354035767,1740190239350,-224.4577424,0.00013577,2]
[354035769,1740190239361,-3060.86773874,0.00013583,2]
[354035771,1740190239371,-150.0,0.00013587,2]
[354035773,1740190239382,-653.82669017,0.00013593,2]
[354035776,1740190239393,-500.0,0.00013594,2]
[354035778,1740190239404,-968.26,0.00013594,2]
[354035780,1740190239416,-859.57,0.00013594,2]
[354035782,1740190239428,-514.26,0.00013594,2]
[354035784,1740190239439,-582.97,0.00013594,2]
[354035786,1740190239451,-522.452798,0.00013594,2]
[354035789,1740190239465,-500.0,0.00013594,2]
[354035790,1740190239475,-155.403759,0.00013594,2]
[354035793,1740190239486,-2943.08,0.00013594,2]
[354035794,1740190239496,-556.48,0.00013594,2]
[354035796,1740190239505,-639.98,0.00013594,2]
[354035798,1740190239514,-553.59,0.00013594,2]
[354035800,1740190239524,-500.0,0.00013594,2]
[354035803,1740190239534,-479.839384,0.00013594,2]
[354035831,1740190239544,-500.0,0.00013594,2]
[354035835,1740190239816,-500.0,0.00013594,2]
[354035838,1740190239833,-500.0,0.00013594,2]
[354035840,1740190239842,-590.76,0.00013594,2]
[354035842,1740190239851,-500.0,0.00013594,2]
[354035844,1740190239861,-672.88,0.00013594,2]
[354035846,1740190239870,-500.0,0.00013594,2]
[354035848,1740190239879,-500.0,0.00013594,2]
[354035850,1740190239889,-510.29,0.00013594,2]
[354035851,1740190239898,-551.12,0.00013594,2]
[354035853,1740190239908,-500.0,0.00013594,2]
[354035855,1740190239917,-500.0,0.00013594,2]
[354035857,1740190239927,-1205.53,0.00013594,2]
[354035859,1740190239937,-599.26,0.00013594,2]
[354035861,1740190239946,-553.55,0.00013594,2]
[354035863,1740190239955,-500.0,0.00013594,2]
[354035865,1740190239964,-500.0,0.00013594,2]
[354035867,1740190239974,-500.0,0.00013594,2]
[354035869,1740190239983,-622.17,0.00013594,2]
[354035871,1740190239993,-506.47,0.00013594,2]
[354035873,1740190240002,-534.03,0.00013594,2]
[354035875,1740190240011,-500.0,0.00013594,2]
[354035877,1740190240021,-574.4,0.00013594,2]
[354035879,1740190240030,-500.0,0.00013594,2]
[354035881,1740190240039,-500.0,0.00013594,2]
[354035882,1740190240048,-500.0,0.00013594,2]
[354035883,1740190240058,-500.0,0.00013594,2]
[354035884,1740190240067,-506.49,0.00013594,2]
[354035885,1740190240077,-925.61,0.00013594,2]
[354035886,1740190240086,-500.0,0.00013594,2]
[354035887,1740190240096,-500.0,0.00013594,2]
[354035888,1740190240105,-500.0,0.00013594,2]
[354035889,1740190240115,-500.0,0.00013594,2]
[354035890,1740190240124,-543.34,0.00013594,2]
[354035891,1740190240134,-500.0,0.00013594,2]
[354035892,1740190240143,-565.68,0.00013594,2]
[354035893,1740190240153,-500.0,0.00013594,2]
[354035894,1740190240167,-500.0,0.00013594,2]
[354035895,1740190240176,-659.86,0.00013594,2]
[354035896,1740190240186,-596.34,0.00013594,2]
[354035897,1740190240195,-841.79,0.00013594,2]
[354035898,1740190240206,-590.4,0.00013594,2]
[354035900,1740190240215,-659.49,0.00013594,2]
[354035901,1740190240225,-500.0,0.00013594,2]
[354035902,1740190240234,-500.0,0.00013594,2]
[354035903,1740190240244,-500.0,0.00013594,2]
[354035904,1740190240253,-500.0,0.00013594,2]
[354035905,1740190240262,-590.47,0.00013594,2]
[354035906,1740190240271,-500.0,0.00013594,2]
[354035907,1740190240280,-500.0,0.00013594,2]
[354035908,1740190240289,-500.0,0.00013594,2]
[354035909,1740190240298,-500.0,0.00013594,2]
[354035910,1740190240308,-78.09744324,0.00013594,2]
[354035911,1740190240320,-956.51255676,0.00013594,2]
[354035912,1740190240329,-19.48284709,0.00013594,2]
[354035917,1740190240866,-480.51715291,0.00013594,2]
[354035918,1740190240876,-500.0,0.00013594,2]
[354035919,1740190240885,-500.0,0.00013594,2]
[354035920,1740190240894,-500.0,0.00013594,2]
[354035922,1740190240903,-500.0,0.00013595,2]
[354035924,1740190240912,-500.0,0.00013595,2]
[354035926,1740190240922,-500.0,0.00013595,2]
[354035928,1740190240931,-500.0,0.00013595,2]
[354035930,1740190240940,-500.0,0.00013595,2]
[354035932,1740190240950,-500.0,0.00013595,2]
[354035934,1740190240959,-504.74719634,0.00013595,2]
[354035936,1740190240968,-507.70222255,0.00013595,2]
[354035938,1740190240977,-500.0,0.00013595,2]
[354035939,1740190240987,-500.0,0.00013595,2]
[354035940,1740190240997,-500.0,0.00013595,2]
[354035941,1740190241006,-500.0,0.00013595,2]
[354035942,1740190241015,-500.0,0.00013595,2]
[354035943,1740190241025,-580.3205334,0.00013595,2]
[354035944,1740190241035,-500.0,0.00013595,2]
[354035945,1740190241044,-500.0,0.00013595,2]
[354035946,1740190241054,-450.34304665,0.00013595,2]
[354035947,1740190241063,-500.0,0.00013595,2]
[354035948,1740190241072,-500.0,0.00013595,2]
[354035949,1740190241081,-500.0,0.00013595,2]
[354035950,1740190241091,-500.0,0.00013595,2]
[354035951,1740190241099,-500.0,0.00013595,2]
[354035952,1740190241109,-500.0,0.00013595,2]
[354035953,1740190241118,-500.0,0.00013595,2]
[354035954,1740190241127,-500.0,0.00013595,2]
[354035955,1740190241136,-500.0,0.00013595,2]
[354035956,1740190241145,-500.0,0.00013595,2]
[354035957,1740190241154,-500.0,0.00013595,2]
[354035958,1740190241164,-500.0,0.00013595,2]
[354035959,1740190241173,-500.0,0.00013595,2]
[354035960,1740190241182,-500.0,0.00013595,2]
[354035961,1740190241192,-500.0,0.00013595,2]
[354035962,1740190241201,-306.99341702,0.00013595,2]
[354035963,1740190241212,-645.2270229,0.00013595,2]
[354035964,1740190241221,-500.0,0.00013595,2]
[354035965,1740190241231,-476.23393754,0.00013595,2]
[354035966,1740190241240,-500.0,0.00013595,2]
[354035967,1740190241249,-538.06507839,0.00013595,2]
[354035968,1740190241257,-500.0,0.00013595,2]
[354035969,1740190241267,-500.0,0.00013595,2]
[354035970,1740190241276,-500.0,0.00013595,2]
[354035971,1740190241284,-500.0,0.00013595,2]
[354035972,1740190241294,-500.0,0.00013595,2]
[354035973,1740190241303,-500.0,0.00013595,2]
[354035974,1740190241312,-500.0,0.00013595,2]
[354035975,1740190241321,-500.0,0.00013595,2]
[354035976,1740190241330,-500.0,0.00013595,2]
[354035977,1740190241339,-500.0,0.00013595,2]
[354035978,1740190241349,-500.0,0.00013595,2]
[354035979,1740190241358,-500.0,0.00013595,2]
[354035980,1740190241367,-500.0,0.00013595,2]
[354035981,1740190241377,-500.0,0.00013595,2]
[354035982,1740190241386,-500.0,0.00013595,2]
[354035983,1740190241395,-500.0,0.00013595,2]
[354035984,1740190241404,-500.0,0.00013595,2]
[354035985,1740190241413,-500.0,0.00013595,2]
[354035986,1740190241422,-500.0,0.00013595,2]
[354035987,1740190241431,-500.0,0.00013595,2]
[354035988,1740190241440,-500.0,0.00013595,2]
[354035989,1740190241449,-500.0,0.00013595,2]
[354035990,1740190241462,-500.0,0.00013595,2]
[354035991,1740190241471,-500.0,0.00013595,2]
[354035992,1740190241480,-500.0,0.00013595,2]
[354035993,1740190241490,-500.0,0.00013595,2]
[354035994,1740190241500,-506.8945945,0.00013595,2]
[354035995,1740190241509,-500.0,0.00013595,2]
[354035996,1740190241518,-506.6461371,0.00013595,2]
[354035997,1740190241527,-500.0,0.00013595,2]
[354035998,1740190241538,-500.0,0.00013595,2]
[354035999,1740190241548,-500.0,0.00013595,2]
[354036000,1740190241557,-193.71354248,0.00013595,2]
[354036001,1740190241576,-299.28645752,0.00013595,2]
[354036002,1740190241585,-500.0,0.00013595,2]
[354036003,1740190241595,-500.0,0.00013595,2]
[354036004,1740190241604,-500.0,0.00013595,2]
[354036005,1740190241613,-500.0,0.00013595,2]
[354036006,1740190241622,-500.0,0.00013595,2]
[354036007,1740190241631,-500.0,0.00013595,2]
[354036008,1740190241640,-500.0,0.00013595,2]
[354036009,1740190241649,-500.0,0.00013595,2]
[354036010,1740190241658,-500.0,0.00013595,2]
[354036011,1740190241667,-500.0,0.00013595,2]
[354036012,1740190241676,-500.0,0.00013595,2]
[354036013,1740190241685,-500.0,0.00013595,2]
[354036014,1740190241695,-500.0,0.00013595,2]
[354036015,1740190241704,-500.0,0.00013595,2]
[354036016,1740190241713,-500.0,0.00013595,2]
[354036017,1740190241722,-500.0,0.00013595,2]
[354036018,1740190241732,-500.0,0.00013595,2]
[354036019,1740190241740,-500.0,0.00013595,2]
[354036020,1740190241750,-500.0,0.00013595,2]
[354036021,1740190241759,-500.0,0.00013595,2]
[354036022,1740190241768,-500.0,0.00013595,2]
[354036023,1740190241777,-500.0,0.00013595,2]
[354036024,1740190241786,-500.0,0.00013595,2]
[354036025,1740190241795,-500.0,0.00013595,2]
[354036026,1740190241805,-500.0,0.00013595,2]
[354036027,1740190241814,-500.0,0.00013595,2]
[354036028,1740190241824,-500.0,0.00013595,2]
[354036029,1740190241833,-500.0,0.00013595,2]
[354036030,1740190241842,-500.0,0.00013595,2]
[354036031,1740190241852,-507.43,0.00013595,2]
[354036032,1740190241861,-500.0,0.00013595,2]
[354036033,1740190241871,-500.0,0.00013595,2]
[354036034,1740190241880,-500.0,0.00013595,2]
[354036035,1740190241890,-500.0,0.00013595,2]
[354036036,1740190241899,-500.0,0.00013595,2]
[354036037,1740190241908,-500.0,0.00013595,2]
[354036038,1740190241918,-500.0,0.00013595,2]
[354036039,1740190241927,-500.0,0.00013595,2]
[354036040,1740190241937,-500.0,0.00013595,2]
[354036041,1740190241947,-500.0,0.00013595,2]
[354036042,1740190241956,-500.0,0.00013595,2]
[354036043,1740190241965,-611.80751819,0.00013595,2]
[354036044,1740190241974,-500.0,0.00013595,2]
[354036045,1740190241983,-500.0,0.00013595,2]
[354036046,1740190241993,-500.0,0.00013595,2]
[354036047,1740190242002,-500.0,0.00013595,2]
[354036048,1740190242011,-500.0,0.00013595,2]
[354036049,1740190242021,-500.0,0.00013595,2]
[354036050,1740190242030,-500.0,0.00013595,2]
[354036051,1740190242040,-500.0,0.00013595,2]
[354036052,1740190242050,-500.0,0.00013595,2]
[354036053,1740190242059,-500.0,0.00013595,2]
[354036054,1740190242069,-500.0,0.00013595,2]
[354036055,1740190242078,-500.0,0.00013595,2]
[354036056,1740190242087,-500.0,0.00013595,2]
[354036057,1740190242096,-500.0,0.00013595,2]
[354036058,1740190242106,-500.0,0.00013595,2]
[354036059,1740190242115,-500.0,0.00013595,2]
[354036060,1740190242125,-500.0,0.00013595,2]
[354036061,1740190242134,-500.0,0.00013595,2]
[354036062,1740190242144,-500.0,0.00013595,2]
[354036063,1740190242152,-500.0,0.00013595,2]
[354036064,1740190242162,-42.89602429,0.00013595,2]
[354036065,1740190242181,-457.10397571,0.00013595,2]
[354036066,1740190242191,-500.0,0.00013595,2]
[354036067,1740190242200,-207.69417603,0.00013595,2]
[354036068,1740190242219,-292.30582397,0.00013595,2]
[354036069,1740190242228,-508.79128905,0.00013595,2]
[354036070,1740190242238,-500.0,0.00013595,2]
[354036071,1740190242247,-93.57258142,0.00013595,2]
[354036075,1740190243259,-406.42741858,0.00013595,2]
[354036076,1740190243270,-500.0,0.00013595,2]
[354036077,1740190243280,-500.0,0.00013595,2]
[354036078,1740190243289,-500.0,0.00013595,2]
[354036079,1740190243299,-34.37034413,0.00013595,2]
[354036080,1740190243317,-465.62965587,0.00013595,2]
[354036081,1740190243332,-500.0,0.00013595,2]
[354036082,1740190243343,-500.0,0.00013595,2]
[354036083,1740190243353,-504.97602398,0.00013595,2]
[354036084,1740190243363,-630.03619122,0.00013595,2]
[354036088,1740190243562,-500.0,0.00013595,2]
[354036090,1740190243578,-500.0,0.00013595,2]
[354036092,1740190243588,-500.0,0.00013595,2]
[354036094,1740190243598,-586.12,0.00013595,2]
[354036096,1740190243607,-500.0,0.00013595,2]
[354036098,1740190243617,-500.0,0.00013595,2]
[354036100,1740190243627,-500.0,0.00013595,2]
[354036102,1740190243636,-500.0,0.00013595,2]
[354036104,1740190243646,-500.0,0.00013595,2]
[354036106,1740190243656,-500.0,0.00013595,2]
[354036108,1740190243666,-500.0,0.00013595,2]
[354036110,1740190243676,-500.0,0.00013595,2]
[354036112,1740190243686,-500.0,0.00013595,2]
[354036114,1740190243695,-500.0,0.00013595,2]
[354036116,1740190243705,-500.0,0.00013595,2]
[354036118,1740190243714,-500.0,0.00013595,2]
[354036121,1740190243723,-500.0,0.00013595,2]
[354036123,1740190243732,-500.0,0.00013595,2]
[354036126,1740190243742,-500.0,0.00013595,2]
[354036129,1740190243751,-568.65048002,0.00013595,2]
[354036131,1740190243761,-500.0,0.00013595,2]
[354036133,1740190243770,-500.0,0.00013595,2]
[354036135,1740190243780,-500.0,0.00013595,2]
[354036137,1740190243789,-500.0,0.00013595,2]
[354036139,1740190243798,-500.0,0.00013595,2]
[354036141,1740190243807,-375.49639052,0.00013595,2]
[354036143,1740190243817,-500.0,0.00013595,2]
[354036145,1740190243826,-500.0,0.00013595,2]
[354036147,1740190243835,-500.0,0.00013595,2]
[354036148,1740190243845,-500.0,0.00013595,2]
[354036149,1740190243855,-500.0,0.00013595,2]
[354036150,1740190243864,-500.0,0.00013595,2]
[354036151,1740190243874,-500.0,0.00013595,2]
[354036152,1740190243883,-500.0,0.00013595,2]
[354036153,1740190243893,-500.0,0.00013595,2]
[354036154,1740190243902,-500.0,0.00013595,2]
[354036155,1740190243912,-500.0,0.00013595,2]
[354036156,1740190243921,-500.0,0.00013595,2]
[354036157,1740190243931,-500.0,0.00013595,2]
[354036158,1740190243940,-500.0,0.00013595,2]
[354036159,1740190243950,-620.0676724,0.00013595,2]
[354036160,1740190243959,-500.0,0.00013595,2]
[354036161,1740190243969,-500.0,0.00013595,2]
[354036162,1740190243978,-500.0,0.00013595,2]
[354036163,1740190243989,-500.0,0.00013595,2]
[354036164,1740190243999,-500.0,0.00013595,2]
[354036165,1740190244009,-500.0,0.00013596,2]
[354036166,1740190244019,-509.39976649,0.00013596,2]
[354036167,1740190244028,-500.0,0.00013596,2]
[354036168,1740190244038,-500.0,0.00013596,2]
[354036169,1740190244047,-500.0,0.00013596,2]
[354036170,1740190244057,-500.0,0.00013596,2]
[354036171,1740190244066,-339.18445401,0.00013596,2]
[354036172,1740190244075,-500.0,0.00013596,2]
[354036173,1740190244084,-500.0,0.00013596,2]
[354036174,1740190244094,-500.0,0.00013596,2]
[354036175,1740190244115,-500.0,0.00013596,2]
[354036176,1740190244134,-500.0,0.00013596,2]
[354036177,1740190244144,-500.0,0.00013596,2]
[354036178,1740190244154,-163.68185205,0.00013596,2]
[354036179,1740190244164,-500.0,0.00013596,2]
[354036180,1740190244174,-500.0,0.00013596,2]
[354036181,1740190244184,-507.31753736,0.00013596,2]
[354036182,1740190244194,-500.0,0.00013596,2]
[354036183,1740190244204,-500.0,0.00013596,2]
[354036184,1740190244214,-500.0,0.00013596,2]
[354036185,1740190244224,-500.0,0.00013596,2]
[354036186,1740190244235,-500.0,0.00013596,2]
[354036187,1740190244245,-500.0,0.00013596,2]
[354036188,1740190244254,-334.6754827,0.00013596,2]
[354036189,1740190244264,-500.0,0.00013596,2]
[354036190,1740190244274,-500.0,0.00013596,2]
[354036191,1740190244283,-500.53406494,0.00013597,2]
[354036192,1740190244293,-500.0,0.00013597,2]
[354036193,1740190244303,-500.0,0.00013599,2]
[354036194,1740190244313,-500.0,0.00013599,2]
[354036195,1740190244322,-150.0,0.00013599,2]
[354036196,1740190244332,-500.0,0.00013599,2]
[354036197,1740190244342,-500.0,0.00013599,2]
[354036198,1740190244352,-172.8484261,0.00013599,2]
[354036199,1740190244362,-500.0,0.00013599,2]
[354036200,1740190244371,-500.0,0.00013599,2]
[354036201,1740190244381,-500.0,0.00013599,2]
[354036202,1740190244391,-500.0,0.00013599,2]
[354036203,1740190244400,-500.0,0.00013599,2]
[354036204,1740190244410,-500.0,0.00013599,2]
[354036205,1740190244419,-500.0,0.00013599,2]
[354036206,1740190244429,-500.0,0.00013599,2]
[354036207,1740190244439,-500.0,0.00013599,2]
[354036208,1740190244449,-500.0,0.00013599,2]
[354036209,1740190244461,-500.0,0.00013599,2]
[354036210,1740190244472,-500.0,0.00013599,2]
[354036211,1740190244481,-500.0,0.00013599,2]
[354036212,1740190244491,-500.0,0.00013599,2]
[354036213,1740190244503,-500.0,0.00013599,2]
[354036214,1740190244512,-500.0,0.00013599,2]
[354036215,1740190244522,-500.0,0.00013599,2]
[354036216,1740190244532,-500.0,0.00013599,2]
[354036217,1740190244542,-500.0,0.00013599,2]
[354036218,1740190244551,-500.0,0.00013599,2]
[354036219,1740190244561,-500.0,0.00013599,2]
[354036220,1740190244570,-500.0,0.00013599,2]
[354036221,1740190244579,-500.0,0.00013599,2]
[354036222,1740190244589,-500.0,0.00013599,2]
[354036223,1740190244599,-500.0,0.00013599,2]
[354036224,1740190244608,-500.0,0.00013599,2]
[354036225,1740190244617,-500.0,0.00013599,2]
[354036226,1740190244626,-500.0,0.00013599,2]
[354036227,1740190244637,-500.0,0.00013599,2]
[354036228,1740190244647,-500.0,0.00013599,2]
[354036229,1740190244656,-500.0,0.00013599,2]
[354036230,1740190244666,-500.0,0.00013599,2]
[354036231,1740190244676,-500.0,0.00013599,2]
[354036232,1740190244686,-450.0,0.00013599,2]
[354036233,1740190244696,-500.0,0.00013599,2]
[354036234,1740190244705,-500.0,0.00013599,2]
[354036235,1740190244715,-159.3840204,0.00013599,2]
[354036236,1740190244724,-500.0,0.00013599,2]
[354036237,1740190244734,-500.0,0.00013599,2]
[354036238,1740190244743,-500.0,0.00013599,2]
[354036239,1740190244753,-500.0,0.00013599,2]
[354036240,1740190244762,-500.0,0.00013599,2]
[354036241,1740190244772,-500.0,0.00013599,2]
[354036242,1740190244781,-500.0,0.00013599,2]
[354036243,1740190244791,-499.99999999,0.00013599,2]
[354036244,1740190244804,-151.0,0.000136,2]
[354036245,1740190244814,-151.0,0.000136,2]
[354036246,1740190244824,-151.0,0.000136,2]
[354036247,1740190244834,-151.0,0.000136,2]
[354036248,1740190244844,-3500.0,0.000136,4]
[354036249,1740190244854,-150.0,0.00013606,2]
[354036250,1740190244864,-150.0,0.00013608,2]
[354036251,1740190244873,-500.0,0.00013619,2]
[354036252,1740190244883,-508.66531627,0.00013619,2]
[354036253,1740190244892,-500.0,0.00013619,2]
[354036254,1740190244902,-500.0,0.00013619,2]
[354036255,1740190244912,-500.0,0.00013619,2]
[354036256,1740190244921,-500.0,0.00013619,2]
[354036257,1740190244931,-500.0,0.00013619,2]
[354036258,1740190244940,-500.0,0.00013619,2]
[354036259,1740190244950,-271.54148975,0.00013619,2]
[354036260,1740190244960,-500.0,0.00013619,2]
[354036261,1740190244970,-519.71211457,0.00013619,2]
[354036262,1740190244980,-500.0,0.00013619,2]
[354036263,1740190244990,-500.0,0.00013619,2]
[354036264,1740190245000,-500.0,0.00013619,2]
[354036265,1740190245009,-150.0,0.00013619,2]
[354036266,1740190245019,-504.72624392,0.00013619,2]
[354036267,1740190245029,-504.16748179,0.00013619,2]
[354036268,1740190245039,-504.4526902,0.00013619,2]
[354036269,1740190245049,-504.99923075,0.00013619,2]
[354036270,1740190245058,-504.68630809,0.00013619,2]
[354036271,1740190245068,-500.0,0.00013619,2]
[354036272,1740190245078,-500.0,0.00013619,2]
[354036273,1740190245087,-500.0,0.00013619,2]
[354036274,1740190245097,-500.0,0.00013619,2]
[354036275,1740190245106,-500.0,0.00013619,2]
[354036276,1740190245116,-500.0,0.00013619,2]
[354036277,1740190245126,-500.0,0.00013619,2]